fUSD/lending_fUSD_20250720
["ID","MTS","AMOUNT","RATE_DAILY","PERIOD"]
[373590085,1753055461864,-480.0,0.00019178,2]
[373590087,1753055461873,-460.0,0.00019178,2]
[373590089,1753055461883,-482.16875133,0.00019178,2]
[373590091,1753055461892,-480.0,0.00019178,2]
[373590093,1753055461901,-480.0,0.00019178,2]
[373590095,1753055461911,-480.0,0.00019178,2]
[373590097,1753055461920,-480.0,0.00019178,2]
[373590099,1753055461930,-480.0,0.00019178,2]
[373590101,1753055461939,-480.0,0.00019178,2]
[373590103,1753055461949,-480.0,0.00019178,2]
[373590104,1753055461958,-482.49740957,0.00019178,2]
[373590107,1753055461968,-754.25,0.00019178,2]
[373590109,1753055461983,-601.28,0.00019178,2]
[373590112,1753055461998,-480.0,0.00019178,2]
[373590114,1753055462010,-480.0,0.00019178,2]
[373590117,1753055462024,-450.16122805,0.00019178,2]
[373590119,1753055462037,-480.0,0.00019178,2]
[373590121,1753055462051,-3251.3,0.00019178,2]
[373590124,1753055462065,-480.0,0.00019178,2]
[373590126,1753055462080,-480.0,0.00019178,2]
[373590129,1753055462093,-1368.15,0.00019178,2]
[373590131,1753055462105,-482.15309086,0.00019178,2]
[373590133,1753055462116,-480.0,0.00019178,2]
[373590135,1753055462129,-480.0,0.00019178,2]
[373590138,1753055462143,-1027.05,0.00019178,2]
[373590140,1753055462158,-601.4,0.00019178,2]
[373590143,1753055462172,-480.0,0.00019178,2]
[373590145,1753055462187,-480.0,0.00019178,2]
[373590148,1753055462199,-2641.79,0.00019178,2]
[373590150,1753055462215,-480.0,0.00019178,2]
[373590153,1753055462228,-480.0,0.00019178,2]
[373590155,1753055462241,-2500.89,0.00019178,2]
[373590158,1753055462254,-480.0,0.00019178,2]
[373590160,1753055462268,-1818.69,0.00019178,2]
[373590162,1753055462283,-480.0,0.00019178,2]
[373590165,1753055462295,-2805.44,0.00019178,2]
[373590167,1753055462308,-480.0,0.00019178,2]
[373590169,1753055462320,-480.0,0.00019178,2]
[373590172,1753055462331,-480.0,0.00019178,2]
[373590174,1753055462343,-482.52777157,0.00019178,2]
[373590177,1753055462359,-500.0,0.00019178,2]
[373590179,1753055462370,-480.0,0.00019178,2]
[373590181,1753055462381,-480.0,0.00019178,2]
[373590183,1753055462392,-517.96,0.00019178,2]
[373590185,1753055462405,-480.0,0.00019178,2]
[373590188,1753055462419,-1372.51,0.00019178,2]
[373590190,1753055462431,-461.71486257,0.00019178,2]
[373590192,1753055462442,-152.33514047,0.00019178,2]
[373590195,1753055462453,-480.0,0.00019178,2]
[373590197,1753055462465,-870.51,0.00019178,2]
[373590199,1753055462477,-480.0,0.00019178,2]
[373590201,1753055462488,-480.0,0.00019178,2]
[373590203,1753055462500,-480.0,0.00019178,2]
[373590206,1753055462512,-480.0,0.00019178,2]
[373590208,1753055462524,-480.0,0.00019178,2]
[373590210,1753055462536,-480.0,0.00019178,2]
[373590212,1753055462548,-480.0,0.00019178,2]
[373590214,1753055462560,-1482.94,0.00019178,2]
[373590217,1753055462573,-480.0,0.00019178,2]
[373590219,1753055462584,-480.0,0.00019178,2]
[373590221,1753055462597,-480.0,0.00019178,2]
[373590224,1753055462608,-2642.36,0.00019178,2]
[373590226,1753055462620,-480.0,0.00019178,2]
[373590228,1753055462633,-5286.42,0.00019178,2]
[373590230,1753055462645,-1583.24,0.00019178,2]
[373590233,1753055462658,-614.9042959,0.00019178,2]
[373590235,1753055462670,-432.53324497,0.00019178,2]
[373590236,1753055462682,-480.0,0.00019178,2]
[373590237,1753055462694,-480.0,0.00019178,2]
[373590238,1753055462706,-983.96,0.00019178,2]
[373590239,1753055462718,-538.34,0.00019178,2]
[373590240,1753055462731,-480.0,0.00019178,2]
[373590241,1753055462745,-480.0,0.00019178,2]
[373590242,1753055462758,-480.0,0.00019178,2]
[373590243,1753055462770,-480.0,0.00019178,2]
[373590244,1753055462783,-480.0,0.00019178,2]
[373590246,1753055462795,-511.62,0.00019178,2]
[373590248,1753055462807,-1310.87,0.00019178,2]
[373590251,1753055462820,-480.0,0.00019178,2]
[373590253,1753055462831,-480.0,0.00019178,2]
[373590255,1753055462844,-480.0,0.00019178,2]
[373590258,1753055462862,-300.0,0.00019178,2]
[373590260,1753055462874,-465.80813617,0.00019178,2]
[373590263,1753055462886,-733.45,0.00019178,2]
[373590265,1753055462897,-480.0,0.00019178,2]
[373590267,1753055462909,-480.0,0.00019178,2]
[373590269,1753055462921,-480.0,0.00019178,2]
[373590272,1753055462933,-480.0,0.00019178,2]
[373590274,1753055462945,-480.0,0.00019178,2]
[373590276,1753055462956,-480.0,0.00019178,2]
[373590278,1753055462968,-554.29167424,0.00019178,2]
[373590281,1753055462980,-480.0,0.00019178,2]
[373590283,1753055462992,-480.0,0.00019178,2]
[373590285,1753055463004,-480.0,0.00019178,2]
[373590288,1753055463016,-828.32,0.00019178,2]
[373590290,1753055463029,-554.03,0.00019178,2]
[373590292,1753055463041,-480.0,0.00019178,2]
[373590294,1753055463053,-460.73353691,0.00019178,2]
[373590297,1753055463066,-480.0,0.00019178,2]
[373590299,1753055463079,-1137.53,0.00019178,2]
[373590301,1753055463091,-586.57,0.00019178,2]
[373590304,1753055463104,-1406.05,0.00019178,2]
[373590306,1753055463117,-480.0,0.00019178,2]
[373590308,1753055463129,-2504.7,0.00019178,2]
[373590310,1753055463141,-480.0,0.00019178,2]
[373590313,1753055463154,-6508.21,0.00019178,2]
[373590315,1753055463166,-1019.29,0.00019178,2]
[373590317,1753055463178,-480.0,0.00019178,2]
[373590320,1753055463190,-500.0,0.00019178,2]
[373590322,1753055463202,-500.0,0.00019178,2]
[373590324,1753055463215,-500.0,0.00019178,2]
[373590326,1753055463227,-500.0,0.00019178,2]
[373590329,1753055463241,-500.0,0.00019178,2]
[373590331,1753055463253,-500.0,0.00019178,2]
[373590333,1753055463265,-504.9400839,0.00019178,2]
[373590336,1753055463278,-480.0,0.00019178,2]
[373590338,1753055463290,-480.0,0.00019178,2]
[373590340,1753055463302,-2416.16,0.00019178,2]
[373590342,1753055463315,-480.0,0.00019178,2]
[373590345,1753055463327,-480.0,0.00019178,2]
[373590347,1753055463339,-480.0,0.00019178,2]
[373590349,1753055463351,-480.0,0.00019178,2]
[373590351,1753055463363,-949.94,0.00019178,2]
[373590354,1753055463375,-2180.91,0.00019178,2]
[373590356,1753055463390,-480.0,0.00019178,2]
[373590358,1753055463403,-480.0,0.00019178,2]
[373590360,1753055463414,-1638.17,0.00019178,2]
[373590363,1753055463427,-480.0,0.00019178,2]
[373590365,1753055463439,-594.19,0.00019178,2]
[373590367,1753055463451,-480.0,0.00019178,2]
[373590370,1753055463464,-480.0,0.00019178,2]
[373590372,1753055463476,-480.0,0.00019178,2]
[373590374,1753055463489,-480.0,0.00019178,2]
[373590376,1753055463501,-669.13,0.00019178,2]
[373590379,1753055463513,-480.0,0.00019178,2]
[373590381,1753055463525,-500.0,0.00019178,2]
[373590383,1753055463536,-500.0,0.00019178,2]
[373590385,1753055463549,-500.0,0.00019178,2]
[373590387,1753055463561,-500.0,0.00019178,2]
[373590390,1753055463574,-489.3,0.00019178,2]
[373590392,1753055463586,-500.0,0.00019178,2]
[373590394,1753055463598,-357.85741483,0.00019178,2]
[373590397,1753055463610,-500.0,0.00019178,2]
[373590399,1753055463622,-502.10884568,0.00019178,2]
[373590401,1753055463634,-480.0,0.00019178,2]
[373590404,1753055463648,-480.0,0.00019178,2]
[373590406,1753055463660,-480.0,0.00019178,2]
[373590408,1753055463672,-2641.11,0.00019178,2]
[373590410,1753055463683,-6204.9,0.00019178,2]
[373590412,1753055463696,-782.64,0.00019178,2]
[373590415,1753055463708,-480.0,0.00019178,2]
[373590417,1753055463720,-480.0,0.00019178,2]
[373590419,1753055463732,-480.0,0.00019178,2]
[373590422,1753055463747,-480.0,0.00019178,2]
[373590424,1753055463759,-1494.6,0.00019178,2]
[373590426,1753055463771,-480.0,0.00019178,2]
[373590428,1753055463785,-480.0,0.00019178,2]
[373590431,1753055463796,-460.0,0.00019178,2]
[373590433,1753055463808,-480.0,0.00019178,2]
[373590435,1753055463820,-480.0,0.00019178,2]
[373590437,1753055463832,-480.0,0.00019178,2]
[373590440,1753055463845,-480.0,0.00019178,2]
[373590442,1753055463857,-500.0,0.00019178,2]
[373590444,1753055463869,-500.0,0.00019178,2]
[373590446,1753055463881,-500.0,0.00019178,2]
[373590449,1753055463893,-500.0,0.00019178,2]
[373590451,1753055463905,-500.0,0.00019178,2]
[373590453,1753055463917,-500.0,0.00019178,2]
[373590455,1753055463929,-500.0,0.00019178,2]
[373590458,1753055463941,-500.0,0.00019178,2]
[373590460,1753055463953,-500.0,0.00019178,2]
[373590462,1753055463965,-500.0,0.00019178,2]
[373590464,1753055463977,-500.0,0.00019178,2]
[373590467,1753055463990,-480.0,0.00019178,2]
[373590469,1753055464002,-480.0,0.00019178,2]
[373590471,1753055464014,-3435.49,0.00019178,2]
[373590473,1753055464026,-480.0,0.00019178,2]
[373590476,1753055464039,-480.0,0.00019178,2]
[373590478,1753055464051,-480.0,0.00019178,2]
[373590480,1753055464064,-1042.19,0.00019178,2]
[373590482,1753055464076,-480.0,0.00019178,2]
[373590485,1753055464088,-480.0,0.00019178,2]
[373590487,1753055464100,-480.0,0.00019178,2]
[373590489,1753055464112,-7599.96,0.00019178,2]
[373590492,1753055464123,-480.0,0.00019178,2]
[373590494,1753055464135,-480.0,0.00019178,2]
[373590496,1753055464147,-502.99285186,0.00019178,2]
[373590498,1753055464159,-480.0,0.00019178,2]
[373590500,1753055464171,-480.0,0.00019178,2]
[373590503,1753055464183,-462.05121212,0.00019178,2]
[373590505,1753055464195,-4006.2,0.00019178,2]
[373590507,1753055464207,-481.99511507,0.00019178,2]
[373590509,1753055464219,-480.0,0.00019178,2]
[373590512,1753055464230,-480.0,0.00019178,2]
[373590514,1753055464242,-480.0,0.00019178,2]
[373590516,1753055464254,-1853.45,0.00019178,2]
[373590518,1753055464265,-480.0,0.00019178,2]
[373590521,1753055464280,-480.0,0.00019178,2]
[373590523,1753055464291,-480.0,0.00019178,2]
[373590525,1753055464302,-480.0,0.00019178,2]
[373590527,1753055464313,-364.07125718,0.00019178,2]
[373590529,1753055464324,-577.79652751,0.00019178,2]
[373590532,1753055464335,-802.61,0.00019178,2]
[373590534,1753055464347,-2737.81,0.00019178,2]
[373590536,1753055464358,-480.0,0.00019178,2]
[373590538,1753055464369,-480.0,0.00019178,2]
[373590540,1753055464381,-480.0,0.00019178,2]
[373590543,1753055464392,-1428.49,0.00019178,2]
[373590545,1753055464403,-480.0,0.00019178,2]
[373590547,1753055464415,-480.0,0.00019178,2]
[373590549,1753055464427,-480.0,0.00019178,2]
[373590552,1753055464439,-461.7083508,0.00019178,2]
[373590554,1753055464450,-1423.65,0.00019178,2]
[373590556,1753055464461,-158.478466,0.00019178,2]
[373590558,1753055464473,-1176.44,0.00019178,2]
[373590560,1753055464484,-480.0,0.00019178,2]
[373590563,1753055464495,-1698.98,0.00019178,2]
[373590565,1753055464507,-480.0,0.00019178,2]
[373590567,1753055464517,-160.429356,0.00019178,2]
[373590569,1753055464529,-480.0,0.00019178,2]
[373590571,1753055464540,-1420.65,0.00019178,2]
[373590574,1753055464552,-460.0,0.00019178,2]
[373590576,1753055464564,-480.0,0.00019178,2]
[373590578,1753055464576,-480.0,0.00019178,2]
[373590580,1753055464588,-480.0,0.00019178,2]
[373590583,1753055464600,-480.0,0.00019178,2]
[373590585,1753055464611,-170.93456,0.00019178,2]
[373590587,1753055464623,-480.0,0.00019178,2]
[373590589,1753055464635,-386.96187585,0.00019178,2]
[373590591,1753055464646,-180.085207,0.00019178,2]
[373590594,1753055464658,-169.442129,0.00019178,2]
[373590596,1753055464670,-1141.6,0.00019178,2]
[373590598,1753055464681,-480.0,0.00019178,2]
[373590600,1753055464692,-460.0,0.00019178,2]
[373590602,1753055464704,-863.32,0.00019178,2]
[373590605,1753055464717,-150.0,0.00019178,2]
[373590607,1753055464729,-462.88652898,0.00019178,2]
[373590609,1753055464742,-480.0,0.00019178,2]
[373590612,1753055464755,-523.25078082,0.00019178,2]
[373590614,1753055464767,-5712.58,0.00019178,2]
[373590616,1753055464781,-2053.25,0.00019178,2]
[373590618,1753055464795,-725.79,0.00019178,2]
[373590620,1753055464807,-3858.72,0.00019178,2]
[373590622,1753055464818,-460.7630162,0.00019178,2]
[373590625,1753055464831,-460.0,0.00019178,2]
[373590627,1753055464842,-480.0,0.00019178,2]
[373590629,1753055464854,-480.0,0.00019178,2]
[373590631,1753055464866,-1827.89,0.00019178,2]
[373590634,1753055464878,-480.0,0.00019178,2]
[373590636,1753055464890,-480.0,0.00019178,2]
[373590638,1753055464901,-480.0,0.00019178,2]
[373590640,1753055464910,-3292.51,0.00019178,2]
[373590642,1753055464920,-480.0,0.00019178,2]
[373590644,1753055464929,-850.02,0.00019178,2]
[373590646,1753055464938,-480.0,0.00019178,2]
[373590648,1753055464948,-425.07492019,0.00019178,2]
[373590650,1753055464958,-1732.45,0.00019178,2]
[373590652,1753055464968,-1077.42,0.00019178,2]
[373590654,1753055464977,-480.0,0.00019178,2]
[373590656,1753055464989,-480.0,0.00019178,2]
[373590658,1753055464998,-480.0,0.00019178,2]
[373590660,1753055465007,-480.0,0.00019178,2]
[373590662,1753055465017,-480.0,0.00019178,2]
[373590664,1753055465027,-480.0,0.00019178,2]
[373590666,1753055465037,-2614.35,0.00019178,2]
[373590706,1753055465497,-480.0,0.00019178,2]
[373590711,1753055465540,-1026.25,0.00019178,2]
[373590714,1753055465562,-480.0,0.00019178,2]
[373590716,1753055465577,-480.0,0.00019178,2]
[373590718,1753055465587,-1364.06,0.00019178,2]
[373590720,1753055465596,-1944.5,0.00019178,2]
[373590723,1753055465606,-463.88332559,0.00019178,2]
[373590725,1753055465615,-647.47,0.00019178,2]
[373590726,1753055465625,-533.56711352,0.00019178,2]
[373590729,1753055465634,-852.44,0.00019178,2]
[373590731,1753055465644,-480.0,0.00019178,2]
[373590732,1753055465654,-480.0,0.00019178,2]
[373590734,1753055465664,-480.0,0.00019178,2]
[373590737,1753055465674,-440.0,0.00019178,2]
[373590738,1753055465683,-480.0,0.00019178,2]
[373590740,1753055465692,-194.42305551,0.00019178,2]
[373590742,1753055465702,-2084.33,0.00019178,2]
[373590744,1753055465711,-480.0,0.00019178,2]
[373590746,1753055465720,-480.0,0.00019178,2]
[373590748,1753055465730,-480.0,0.00019178,2]
[373590750,1753055465741,-480.0,0.00019178,2]
[373590752,1753055465754,-514.75,0.00019178,2]
[373590754,1753055465765,-480.0,0.00019178,2]
[373590756,1753055465776,-154.178592,0.00019178,2]
[373590759,1753055465790,-480.0,0.00019178,2]
[373590760,1753055465800,-584.67,0.00019178,2]
[373590762,1753055465811,-578.26,0.00019178,2]
[373590764,1753055465822,-480.0,0.00019178,2]
[373590766,1753055465833,-1404.43,0.00019178,2]
[373590768,1753055465845,-556.44,0.00019178,2]
[373590770,1753055465856,-480.0,0.00019178,2]
[373590773,1753055465867,-1161.04,0.00019178,2]
[373590774,1753055465879,-1161.04,0.00019178,2]
[373590776,1753055465890,-1161.04,0.00019178,2]
[373590779,1753055465900,-480.0,0.00019178,2]
[373590781,1753055465911,-1161.04,0.00019178,2]
[373590783,1753055465922,-1161.04,0.00019178,2]
[373590785,1753055465932,-1161.04,0.00019178,2]
[373590786,1753055465942,-480.0,0.00019178,2]
[373590789,1753055465952,-1161.04,0.00019178,2]
[373590791,1753055465961,-1161.04,0.00019178,2]
[373590793,1753055465971,-1161.04,0.00019178,2]
[373590795,1753055465981,-1161.04,0.00019178,2]
[373590797,1753055465990,-1161.04,0.00019178,2]
[373590798,1753055466000,-480.0,0.00019178,2]
[373590800,1753055466009,-2259.42,0.00019178,2]
[373590802,1753055466018,-598.52,0.00019178,2]
[373590804,1753055466032,-909.49,0.00019178,2]
[373590806,1753055466042,-6912.92,0.00019178,2]
[373590809,1753055466051,-480.0,0.00019178,2]
[373590810,1753055466061,-2197.18,0.00019178,2]
[373590812,1753055466070,-480.0,0.00019178,2]
[373590814,1753055466080,-480.0,0.00019178,2]
[373590816,1753055466090,-480.0,0.00019178,2]
[373590818,1753055466099,-480.0,0.00019178,2]
[373590820,1753055466108,-6861.5,0.00019178,2]
[373590822,1753055466117,-999.53,0.00019178,2]
[373590825,1753055466127,-480.0,0.00019178,2]
[373590827,1753055466136,-484.3229248,0.00019178,2]
[373590828,1753055466145,-263.21860424,0.00019178,2]
[373590830,1753055466154,-505.52,0.00019178,2]
[373590832,1753055466163,-480.0,0.00019178,2]
[373590834,1753055466172,-480.0,0.00019178,2]
[373590837,1753055466183,-480.0,0.00019178,2]
[373590839,1753055466192,-2522.12,0.00019178,2]
[373590840,1753055466202,-754.6,0.00019178,2]
[373590843,1753055466211,-480.0,0.00019178,2]
[373590844,1753055466221,-480.0,0.00019178,2]
[373590847,1753055466230,-480.0,0.00019178,2]
[373590849,1753055466239,-527.68,0.00019178,2]
[373590850,1753055466248,-979.45,0.00019178,2]
[373590852,1753055466258,-480.0,0.00019178,2]
[373590854,1753055466268,-480.0,0.00019178,2]
[373590856,1753055466280,-1327.7,0.00019178,2]
[373590858,1753055466290,-480.0,0.00019178,2]
[373590860,1753055466299,-578.11,0.00019178,2]
[373590862,1753055466308,-500.0,0.00019178,2]
[373590864,1753055466317,-210.32,0.00019178,2]
[373590866,1753055466327,-500.0,0.00019178,2]
[373590868,1753055466336,-500.0,0.00019178,2]
[373590870,1753055466345,-500.0,0.00019178,2]
[373590872,1753055466355,-480.0,0.00019178,2]
[373590874,1753055466364,-500.0,0.00019178,2]
[373590876,1753055466373,-480.0,0.00019178,2]
[373590878,1753055466383,-500.0,0.00019178,2]
[373590880,1753055466392,-443.34543527,0.00019178,2]
[373590882,1753055466401,-500.0,0.00019178,2]
[373590884,1753055466412,-480.0,0.00019178,2]
[373590886,1753055466421,-500.0,0.00019178,2]
[373590888,1753055466430,-480.0,0.00019178,2]
[373590890,1753055466439,-593.96,0.00019178,2]
[373590892,1753055466448,-561.28,0.00019178,2]
[373590894,1753055466458,-461.47069613,0.00019178,2]
[373590896,1753055466467,-440.0,0.00019178,2]
[373590897,1753055466476,-480.0,0.00019178,2]
[373590898,1753055466486,-487.44,0.00019178,2]
[373590899,1753055466495,-480.0,0.00019178,2]
[373590900,1753055466504,-480.0,0.00019178,2]
[373590901,1753055466514,-483.15,0.00019178,2]
[373590902,1753055466523,-817.12,0.00019178,2]
[373590903,1753055466536,-1704.69,0.00019178,2]
[373590904,1753055466546,-1378.56,0.00019178,2]
[373590905,1753055466555,-480.0,0.00019178,2]
[373590907,1753055466564,-480.0,0.00019178,2]
[373590909,1753055466574,-480.0,0.00019178,2]
[373590911,1753055466583,-577.6,0.00019178,2]
[373590912,1753055466593,-480.0,0.00019178,2]
[373590913,1753055466602,-480.0,0.00019178,2]
[373590914,1753055466611,-480.0,0.00019178,2]
[373590915,1753055466620,-480.0,0.00019178,2]
[373590916,1753055466630,-623.1,0.00019178,2]
[373590917,1753055466639,-480.0,0.00019178,2]
[373590918,1753055466648,-480.0,0.00019178,2]
[373590919,1753055466657,-480.0,0.00019178,2]
[373590920,1753055466667,-985.63,0.00019178,2]
[373590921,1753055466676,-500.0,0.00019178,2]
[373590922,1753055466686,-1583.49,0.00019178,2]
[373590923,1753055466696,-502.66379358,0.00019178,2]
[373590924,1753055466705,-480.0,0.00019178,2]
[373590925,1753055466715,-1388.15,0.00019178,2]
[373590926,1753055466724,-480.0,0.00019178,2]
[373590927,1753055466733,-480.0,0.00019178,2]
[373590928,1753055466743,-480.0,0.00019178,2]
[373590929,1753055466755,-480.0,0.00019178,2]
[373590930,1753055466764,-657.93,0.00019178,2]
[373590931,1753055466774,-480.0,0.00019178,2]
[373590932,1753055466785,-480.0,0.00019178,2]
[373590933,1753055466794,-2594.98,0.00019178,2]
[373590934,1753055466803,-480.0,0.00019178,2]
[373590935,1753055466812,-481.7462918,0.00019178,2]
[373590936,1753055466822,-480.0,0.00019178,2]
[373590937,1753055466831,-7034.27,0.00019178,2]
[373590938,1753055466841,-743.99,0.00019178,2]
[373590939,1753055466850,-480.0,0.00019178,2]
[373590940,1753055466861,-480.0,0.00019178,2]
[373590941,1753055466871,-480.0,0.00019178,2]
[373590942,1753055466881,-480.0,0.00019178,2]
[373590943,1753055466890,-480.0,0.00019178,2]
[373590944,1753055466900,-480.0,0.00019178,2]
[373590945,1753055466909,-607.76107713,0.00019178,2]
[373590946,1753055466918,-480.0,0.00019178,2]
[373590947,1753055466927,-3539.75,0.00019178,2]
[373590948,1753055466937,-1004.16,0.00019178,2]
[373590949,1753055466946,-568.03930613,0.00019178,2]
[373590950,1753055466955,-737.48,0.00019178,2]
[373590951,1753055466964,-480.0,0.00019178,2]
[373590952,1753055466974,-1472.24,0.00019178,2]
[373590953,1753055466983,-480.0,0.00019178,2]
[373590954,1753055466992,-480.0,0.00019178,2]
[373590955,1753055467002,-4433.87,0.00019178,2]
[373590956,1753055467011,-480.0,0.00019178,2]
[373590957,1753055467020,-1445.45,0.00019178,2]
[373590958,1753055467032,-480.0,0.00019178,2]
[373590959,1753055467041,-480.0,0.00019178,2]
[373590960,1753055467050,-480.0,0.00019178,2]
[373590961,1753055467060,-480.0,0.00019178,2]
[373590962,1753055467069,-480.0,0.00019178,2]
[373590963,1753055467078,-584.6726358,0.00019178,2]
[373590964,1753055467087,-480.0,0.00019178,2]
[373590965,1753055467097,-3481.93,0.00019178,2]
[373590966,1753055467107,-802.79,0.00019178,2]
[373590967,1753055467116,-2205.42,0.00019178,2]
[373590968,1753055467126,-480.0,0.00019178,2]
[373590969,1753055467135,-480.0,0.00019178,2]
[373590970,1753055467145,-480.0,0.00019178,2]
[373590971,1753055467154,-514.69,0.00019178,2]
[373590972,1753055467163,-480.0,0.00019178,2]
[373590973,1753055467173,-1208.88,0.00019178,2]
[373590974,1753055467182,-2642.28,0.00019178,2]
[373590975,1753055467192,-480.0,0.00019178,2]
[373590976,1753055467201,-480.0,0.00019178,2]
[373590977,1753055467210,-480.0,0.00019178,2]
[373590978,1753055467220,-480.0,0.00019178,2]
[373590979,1753055467229,-1095.25,0.00019178,2]
[373590980,1753055467239,-1029.82,0.00019178,2]
[373590981,1753055467249,-480.0,0.00019178,2]
[373590982,1753055467259,-480.0,0.00019178,2]
[373590983,1753055467269,-480.0,0.00019178,2]
[373590984,1753055467279,-882.72,0.00019178,2]
[373590985,1753055467289,-480.0,0.00019178,2]
[373590986,1753055467298,-460.0,0.00019178,2]
[373590987,1753055467308,-480.0,0.00019178,2]
[373590988,1753055467318,-480.0,0.00019178,2]
[373590989,1753055467328,-480.0,0.00019178,2]
[373590990,1753055467337,-1439.85,0.00019178,2]
[373590991,1753055467347,-480.0,0.00019178,2]
[373590992,1753055467356,-953.77,0.00019178,2]
[373590993,1753055467365,-1950.55,0.00019178,2]
[373590994,1753055467375,-480.0,0.00019178,2]
[373590995,1753055467385,-480.0,0.00019178,2]
[373590996,1753055467395,-480.0,0.00019178,2]
[373590997,1753055467404,-185.20001713,0.00019178,2]
[373590998,1753055467414,-480.0,0.00019178,2]
[373590999,1753055467423,-480.0,0.00019178,2]
[373591000,1753055467433,-480.0,0.00019178,2]
[373591001,1753055467442,-961.17,0.00019178,2]
[373591002,1753055467452,-1906.99,0.00019178,2]
[373591003,1753055467461,-481.56137587,0.00019178,2]
[373591004,1753055467471,-2483.28,0.00019178,2]
[373591005,1753055467480,-555.57686913,0.00019178,2]
[373591006,1753055467489,-480.0,0.00019178,2]
[373591007,1753055467499,-260.0,0.00019178,2]
[373591008,1753055467508,-480.0,0.00019178,2]
[373591009,1753055467517,-482.98206546,0.00019178,2]
[373591010,1753055467528,-1454.01,0.00019178,2]
[373591011,1753055467537,-480.0,0.00019178,2]
[373591012,1753055467547,-480.0,0.00019178,2]
[373591013,1753055467556,-480.0,0.00019178,2]
[373591014,1753055467565,-480.0,0.00019178,2]
[373591015,1753055467575,-480.0,0.00019178,2]
[373591016,1753055467584,-1265.49,0.00019178,2]
[373591017,1753055467593,-460.0,0.00019178,2]
[373591018,1753055467603,-480.0,0.00019178,2]
[373591019,1753055467612,-480.0,0.00019178,2]
[373591020,1753055467622,-480.0,0.00019178,2]
[373591021,1753055467631,-480.0,0.00019178,2]
[373591022,1753055467641,-495.19644541,0.00019178,2]
[373591023,1753055467650,-610.22,0.00019178,2]
[373591024,1753055467660,-5184.78,0.00019178,2]
[373591025,1753055467669,-480.0,0.00019178,2]
[373591026,1753055467679,-20753.93,0.00019178,2]
[373591027,1753055467688,-480.0,0.00019178,2]
[373591028,1753055467698,-480.0,0.00019178,2]
[373591029,1753055467707,-1510.22,0.00019178,2]
[373591030,1753055467717,-43569.02,0.00019178,2]
[373591031,1753055467727,-567.19,0.00019178,2]
[373591032,1753055467736,-929.07,0.00019178,2]
[373591033,1753055467750,-387.42858927,0.00019178,2]
[373591034,1753055467759,-2416.64,0.00019178,2]
[373591035,1753055467768,-3149.28,0.00019178,2]
[373591036,1753055467778,-406.17398593,0.00019178,2]
[373591037,1753055467790,-480.0,0.00019178,2]
[373591038,1753055467799,-540.0,0.00019178,2]
[373591039,1753055467809,-2652.86,0.00019178,2]
[373591040,1753055467818,-837.08,0.00019178,2]